[Event "Sautron op 18th"]
[Site "Sautron "]
[Date "2018.10.25"]
[Round "6.3"]
[White "Nikolov, Momchil"]
[Black "Bujisho, Benjamin"]
[Result "1-0"]
[ECO "A53"]
[WhiteElo "2555"]
[BlackElo "2333"]
[Annotator "Primel,D"]
[PlyCount "137"]
[EventDate "2018.10.20"]
[EventType "swiss"]
[EventRounds "9"]
[EventCountry "FRA"]
[SourceTitle "EXT 2021"]
[Source "ChessBase"]
[SourceDate "2020.10.23"]
[SourceVersion "1"]
[SourceVersionDate "2020.10.23"]
[SourceQuality "1"]
[TimeControl "40/5400+30:1800+30"]
[WhiteClock "0:06:52"]
[BlackClock "0:12:35"]

1. c4 {[%emt 0:00:00]} d6 {[%emt 0:04:07]} 2. d4 {[%emt 0:01:38]} e5 {[%emt 0:
00:13]} 3. Nc3 {[%emt 0:02:44]} (3. Nf3 e4) 3... exd4 {[%emt 0:02:34]} 4. Qxd4
{[%emt 0:00:14]} Nc6 {[%emt 0:02:08]} 5. Qd2 {[%emt 0:00:14]} Nf6 {[%emt 0:00:
31]} 6. e4 {[%emt 0:07:21]} g6 {[%emt 0:05:49]} 7. Bd3 {[%emt 0:00:36]} (7. b3
Bg7 8. Bb2) 7... Bg7 {[%emt 0:01:30]} 8. Nge2 $1 {[%emt 0:00:42] Le plan des
Blancs est de jouer e4 et il faut protéger le Nc3 face à la menace tctique
Ne4} Ne5 $5 {[%emt 0:02:53] Gagne la paire de B mais le Bd3 n'est pas très bon
} (8... O-O 9. O-O Nd7 10. b3 Nc5 11. Bb2 f5 12. Bb1 Qf6 13. exf5 Bxf5 14. Ng3
Qd4 15. Qxd4 Nxd4 16. Bxf5 Nxf5 17. Rad1 Nxg3 18. hxg3 Rae8 19. Ba1 a5 20. Nb5
Bxa1 21. Rxa1 c6 22. Nd4 Rd8 23. Nc2 d5 24. cxd5 Rxd5 25. Ne3 Rd4 26. Rfd1 Rfd8
27. Rxd4 Rxd4 28. Rc1 Nd7 29. Nc4 Rd5 30. Re1 Kf7 31. f3 h5 32. Kh2 Kf6 33. f4
Nc5 34. Nxa5 Nd3 35. Rd1 Rxa5 36. Rxd3 Rxa2 37. Rd7 b5 38. Rd6+ {Harikrishna,P
(2672)-Akobian,V (2628) Wijk aan Zee 2010 1/2-1/2 (86)}) 9. O-O {[%emt 0:03:52]
} O-O {[%emt 0:03:32]} 10. b3 {[%emt 0:06:50]} Nxd3 {[%emt 0:17:22]} 11. Qxd3 {
[%emt 0:00:11]} Nd7 $5 {[%emt 0:00:39][%cal Gd7c5,Gc5e4,Gc5d3]} 12. Be3 {
[%emt 0:04:56]} Nc5 {[%emt 0:12:48]} 13. Qd2 {[%emt 0:00:31]} f5 $1 {[%emt 0:
03:08] L'ouverture du centre doit favoriser la paire de B} 14. Rad1 $5 $146 {
[%emt 0:13:00] Après une longue réflexion, le GMI décide de tenter une
petite amélioration} (14. exf5 Bxf5 15. Nd4 Bd7 16. Bg5 Qc8 17. Nd5 Kh8 18.
Rae1 Rf7 19. Re2 Ne6 20. Nxe6 Bxe6 21. Rfe1 Bxd5 22. Qxd5 Rf5 23. Qd2 Qf8 24.
Re4 Re5 25. Rxe5 Bxe5 26. Qd5 Re8 27. g3 c6 28. Qe4 Qg7 29. Kg2 Rf8 30. f4 Bf6
31. Bxf6 Qxf6 32. Qe7 Qg7 33. Qxd6 h5 34. Re7 Rf7 35. Qb8+ Kh7 36. Rxf7 Qxf7
37. Qxa7 Qd7 38. Qe3 Qd1 39. h3 Qc2+ 40. Qf2 Qe4+ 41. Kh2 Qd3 42. g4 hxg4 43.
hxg4 Kg7 {Wiedenkeller,M (2431)-Jones,R (2373) Khanty-Mansiysk 2010 1-0}) 14...
Nxe4 {[%emt 0:07:53]} 15. Qd5+ {[%emt 0:00:46]} Kh8 16. Nxe4 fxe4 {[%emt 0:01:
27]} 17. Qxe4 $14 {[%emt 0:00:56][%csl Rb7]} Qe8 {[%emt 0:03:47]} 18. Qh4 {
[%emt 0:02:15][%cal Gh4f2,Ge3h6,Ge3d4]} b6 {[%emt 0:08:21]} 19. Rfe1 {[%emt 0:
04:55]} Qf7 {[%emt 0:04:48]} 20. Bd4 {[%emt 0:12:51]} Bb7 {[%emt 0:06:53]} 21.
Nc3 {[%emt 0:06:56][%cal Ge1e7]} Rae8 {[%emt 0:00:42]} 22. f3 {[%emt 0:00:15]}
a6 {[%emt 0:02:36]} 23. Rd3 {[%emt 0:05:44]} Rxe1+ {[%emt 0:00:16]} 24. Qxe1 {
[%emt 0:00:03]} Bxd4+ {[%emt 0:01:35]} 25. Rxd4 {[%emt 0:00:03]} Re8 $132 {
[%emt 0:01:01]} 26. Qd2 {[%emt 0:01:02]} Qe7 {[%emt 0:02:25]} 27. Kf2 $5 {
[%emt 0:02:51] Les Blancs commencent à défendre} Qe5 {[%emt 0:02:19]} 28. h4
{[%emt 0:01:14]} Rf8 {[%emt 0:00:35]} 29. Nd5 {[%emt 0:11:08]} Bxd5 {[%emt 0:
01:05]} (29... Rf7) 30. cxd5 {[%emt 0:02:29]} a5 {[%emt 0:00:33]} 31. Qe3 {
[%emt 0:03:15]} Re8 {[%emt 0:00:48]} 32. Re4 {[%emt 0:04:06]} Qb2+ {[%emt 0:00:
01]} 33. Qe2 {[%emt 0:00:25]} Qxe2+ $6 {[%emt 0:00:14] La finale de R est un
peu meilleure pour les Blancs à cause de la faiblesse "c7"} 34. Rxe2 $16 {
[%emt 0:00:16]} Rf8 {[%emt 0:01:51]} (34... Rxe2+ $6 35. Kxe2 Kg7 36. Ke3 Kf6
37. Kd4 Kf5 38. g3 $16) 35. g4 {[%emt 0:01:58]} Rf7 {[%emt 0:00:15]} 36. Kg3 {
[%emt 0:00:44]} Kg7 {[%emt 0:00:01]} 37. f4 {[%emt 0:00:48]} (37. Re6) 37... h5
$1 {[%emt 0:00:31][%cal Gf7f5,Gf5d5] Le coup clé qui va résoudre une partie
des problèmes des Noirs en obtenant l'accès à la case "f5"} 38. g5 {[%emt 0:
00:28]} Rf5 $1 {[%emt 0:00:51]} 39. Rd2 {[%emt 0:00:36]} (39. Re7+ Kf8 40. Rxc7
Rxd5 $132) 39... Kf8 {[%emt 0:00:55][%cal Gf8e7]} (39... Kf7 40. Rc2 Rxd5 41.
Rxc7+ {Avec prise sur échec}) 40. Kf3 {[%emt 0:00:00]} Ke7 {[%emt 0:00:00]}
41. Re2+ {[%emt 0:00:53]} Kf7 {[%emt 0:05:29]} (41... Kd7 42. Re6 Rxd5 43. Rxg6
{[%cal Gf4f8]}) 42. Rc2 $6 {[%emt 0:03:37] Perd l'avantage d'espace et Ke4
semblait permettre de progresser} (42. Ke4 $1 Ke7 (42... c5 $5 43. dxc6 Rc5 44.
Kd4 Rxc6 {[%cal Gd5d6]} 45. Kd5 {[%cal Ge2e6,Gd5d6,Gd5c6]}) 43. Rc2 Kd7 44. a3
Kd8 (44... b5 45. Rc6 {[%cal Gc6a6]}) 45. b4 axb4 46. axb4 Kd7 47. b5 Kd8 48.
Ra2 Kd7 49. Ra8 $18 {[%cal Ga8g8]}) 42... Rxd5 {[%emt 0:00:11]} 43. Rxc7+ {
[%emt 0:00:10]} Kf8 {[%emt 0:00:28]} 44. Rc6 {[%emt 0:04:32]} b5 {[%emt 0:09:
29]} 45. Ra6 {[%emt 0:01:19]} b4 {[%emt 0:03:31]} 46. Ke4 {[%emt 0:00:30]} Rd1
{[%emt 0:00:22]} 47. Rxa5 {[%emt 0:00:59]} Re1+ {[%emt 0:02:52]} 48. Kd5 {
[%emt 0:04:44]} Rf1 {[%emt 0:00:34]} 49. Ra8+ {[%emt 0:00:08]} (49. Ke6 Rxf4
50. Ra8+ Kg7 51. Ra7+ Kf8) 49... Kf7 {[%emt 0:00:28]} 50. Ra7+ {[%emt 0:00:02]}
Kf8 {[%emt 0:00:29]} 51. Rc7 $1 {[%emt 0:00:49]} Rxf4 {[%emt 0:00:53]} 52. Rc4
{[%emt 0:00:09]} Rf2 {[%emt 0:02:02]} 53. Kxd6 {[%emt 0:01:11]} Rxa2 {[%emt 0:
00:03]} 54. Rxb4 {[%emt 0:00:06][%csl Gd6,Rf8,Rg6][%cal Gd6f6] Les Blancs
gardent des petites chances car le K Noir est mal placé} Ra6+ {[%emt 0:01:01]}
55. Kc7 {[%emt 0:00:33] Joué quasiment à tempo alors que Ke5 semblait
laisser moins de contre-jeu aux Noirs} (55. Ke5 $5 Kg7 56. Rb7+ Kg8 57. b4 $16
{[%csl Gb7,Rg8][%cal Ge5c5,Gc5b5] Par rapport à la partie, le K Noir reste
bloqué en 08ème rangée} Ra1 58. b5 Rh1 59. Kf6 Rxh4 60. Kxg6 $40 {[%csl Gg5,
Rg8][%cal Gb7b8]}) 55... Ra7+ {[%emt 0:02:00]} 56. Kb6 {[%emt 0:00:58] Les
Blancs ont progressé et ils vont pouvoir pousser le P passé} Ra3 {[%emt 0:01:
12]} 57. Rf4+ {[%emt 0:00:43]} Ke7 $1 {[%emt 0:00:00]} 58. b4 {[%emt 0:00:07]}
Ke6 {[%emt 0:02:17]} 59. b5 {[%emt 0:00:45]} Ke5 {[%emt 0:00:07]} 60. Rb4 $1 {
[%emt 0:07:38][%cal Gb6d8,Gd8e7,Ge7f7,Gf7g6,Gb5b8]} Kd5 {[%emt 0:02:41]} 61.
Kb7 {[%emt 0:00:16]} Kc5 {[%emt 0:00:09]} 62. Rb1 {[%emt 0:00:06]} Ra4 {
[%emt 0:00:18]} 63. b6 {[%emt 0:00:12]} Rxh4 {[%emt 0:00:04]} 64. Kc8 {[%emt 0:
00:43]} Rf4 {[%emt 0:00:14]} 65. b7 {[%emt 0:00:17]} Rf8+ {[%emt 0:00:51]} 66.
Kd7 {[%emt 0:00:19]} Kd5 {[%emt 0:00:12]} 67. b8=Q {[%emt 0:00:48]} Rxb8 {
[%emt 0:00:05]} 68. Rxb8 {[%emt 0:00:05]} Ke5 {[%emt 0:00:09]} 69. Rf8 {
[%emt 0:00:23] Et 1-0 au lieu de 0,5 sauvegardé par le plateau DGT} 1-0